bitfinex/quotes_SOLUSD_20241118
["timestamp","ask_amount","ask_price","bid_price","bid_amount"]
[1731951133686,22.02,240.51,240.42,12.44801951]
[1731951134001,12.44801951,240.49,240.42,12.44801951]
[1731951134397,12.44801951,240.49,240.4,28.39231951]
[1731951134705,34.46801951,240.51,240.43,23.776884]
[1731951134882,38.62591951,240.51,240.43,23.776884]
[1731951135088,12.44801951,240.45,240.4,15.9443]
[1731951135387,12.44801951,240.45,240.38,20.12549]
[1731951136018,16.60681951,240.45,240.38,32.44801951]
[1731951136310,12.44801951,240.45,240.39,23.776884]
[1731951136607,12.44801951,240.47,240.39,23.776884]
[1731951136786,12.44801951,240.47,240.4,12.44801951]
[1731951137103,22.02,240.51,240.4,12.44801951]
[1731951137104,22.02,240.51,240.46,12.44801951]
[1731951137312,22.02,240.51,240.47,23.776884]
[1731951137609,22.02,240.51,240.48,12.57350951]
[1731951137906,4.1568,240.57,240.5,12.44801951]
[1731951138090,12.44801951,240.58,240.51,23.776884]
[1731951138490,16.60461951,240.58,240.51,23.776884]
[1731951138887,12.44801951,240.54,240.47,20.25098]
[1731951139231,12.44801951,240.5,240.41,12.44801951]
[1731951139513,15.0481,240.58,240.4,17.68326413]
[1731951139514,12.44801951,240.48,240.4,15.2868]
[1731951139807,12.44801951,240.5,240.41,12.44801951]
[1731951140183,4.1581,240.49,240.41,12.44801951]
[1731951140606,12.44801951,240.48,240.41,12.44801951]
[1731951140800,4.1581,240.49,240.41,12.44801951]
[1731951141009,4.1581,240.49,240.42,23.776884]
[1731951142291,4.1581,240.49,240.41,36.22490351]
[1731951143808,4.1581,240.49,240.43,12.44801951]
[1731951143993,4.1581,240.49,240.44,23.776884]
[1731951144190,4.1578,240.51,240.44,23.776884]
[1731951144884,12.44801951,240.5,240.41,12.44801951]
[1731951145094,12.44801951,240.5,240.42,23.776884]
[1731951146206,4.1581,240.49,240.42,23.776884]
[1731951148090,12.44801951,240.48,240.42,23.776884]
[1731951149395,4.1585,240.47,240.42,23.776884]
[1731951149793,16.60651951,240.47,240.37,0.25098]
[1731951150013,16.60651951,240.47,240.39,12.44801951]
[1731951150789,16.60651951,240.47,240.41,12.44801951]
[1731951151105,4.1585,240.47,240.42,23.776884]
[1731951153607,4.1583,240.49,240.43,12.44801951]
[1731951154117,4.1583,240.49,240.44,12.44801951]
[1731951154896,4.1583,240.49,240.45,12.44801951]
[1731951155520,15.654,240.59,240.46,0.09367462]
[1731951155725,12.44801951,240.57,240.49,12.44801951]
[1731951156818,4.1569,240.56,240.49,12.44801951]
[1731951158625,4.1569,240.56,240.42,23.776884]
[1731951158626,12.44801951,240.55,240.47,12.44801951]
[1731951158814,12.44801951,240.55,240.48,23.776884]
[1731951159409,4.1569,240.56,240.5,23.776884]
[1731951160239,4.1569,240.56,240.43,0.09367462]
[1731951160240,12.44801951,240.55,240.47,12.44801951]
[1731951160527,12.44801951,240.55,240.48,23.776884]
[1731951161321,16.60521951,240.55,240.48,23.776884]
[1731951161623,12.44801951,240.53,240.45,12.44801951]
[1731951161925,12.44801951,240.49,240.41,12.44801951]
[1731951162508,4.1572,240.55,240.35,6.231]
[1731951162509,12.44801951,240.47,240.39,12.44801951]
[1731951162725,1.0,240.54,240.39,12.44801951]
[1731951162726,12.44801951,240.49,240.39,12.44801951]
[1731951163024,12.44801951,240.47,240.39,12.44801951]
[1731951163528,12.44801951,240.51,240.43,12.44801951]
[1731951164816,16.60601951,240.51,240.44,23.776884]
[1731951165015,12.44801951,240.49,240.44,23.776884]
[1731951165334,12.44801951,240.49,240.41,12.44801951]
[1731951165335,12.44801951,240.49,240.43,0.12549]
[1731951166141,12.44801951,240.51,240.44,23.776884]
[1731951166427,12.44801951,240.53,240.46,23.776884]
[1731951168011,12.44801951,240.55,240.48,23.776884]
[1731951168225,16.60521951,240.55,240.48,23.776884]
[1731951168723,16.60521951,240.55,240.45,12.44801951]
[1731951169031,12.44801951,240.51,240.44,23.776884]
[1731951169437,12.44801951,240.53,240.46,23.776884]
[1731951169731,16.60521951,240.55,240.46,23.776884]
[1731951170505,16.60521951,240.55,240.48,23.776884]
[1731951171432,16.60521951,240.55,240.47,0.12549]
[1731951171740,16.60521951,240.55,240.46,23.902374]
[1731951172125,12.44801951,240.53,240.46,23.902374]
[1731951173433,12.44801951,240.49,240.41,12.44801951]
[1731951174008,12.44801951,240.47,240.39,12.44801951]
[1731951175324,12.44801951,240.47,240.37,12.44801951]
[1731951175637,12.44801951,240.43,240.35,12.44801951]
[1731951175935,12.44801951,240.45,240.37,12.44801951]
[1731951176142,12.44801951,240.47,240.39,12.44801951]
[1731951176430,4.1586,240.46,240.39,12.44801951]
[1731951177006,4.1586,240.46,240.4,23.776884]
[1731951180937,4.1585,240.47,240.41,12.44801951]
[1731951182010,16.60651951,240.47,240.4,23.776884]
[1731951184741,4.1585,240.47,240.41,12.44801951]
[1731951184918,16.60651951,240.47,240.4,23.776884]
[1731951186033,12.44801951,240.45,240.38,23.776884]
[1731951186229,4.1593,240.42,240.36,0.12549]
[1731951186429,12.44801951,240.41,240.33,12.44801951]
[1731951187735,12.44801951,240.41,240.34,24.027864]
[1731951187943,16.60761951,240.41,240.34,24.027864]
[1731951188440,16.60761951,240.41,240.34,23.776884]
[1731951188826,16.60761951,240.41,240.27,15.1046]
[1731951188827,12.44801951,240.37,240.27,15.1046]
[1731951189024,12.44801951,240.35,240.26,12.44801951]
[1731951189636,15.1967,240.39,240.24,2.37600951]
[1731951189637,12.44801951,240.33,240.24,14.82402902]
[1731951189842,12.44801951,240.33,240.26,12.44801951]
[1731951190144,16.60891951,240.33,240.24,12.44801951]
[1731951190551,12.44801951,240.31,240.22,12.44801951]
[1731951190849,12.44801951,240.31,240.24,12.44801951]
[1731951191224,4.1605,240.36,240.28,12.44801951]
[1731951191544,4.1605,240.36,240.32,12.44801951]
[1731951191730,16.60801951,240.38,240.3,12.44801951]
[1731951191921,4.16,240.38,240.32,12.44801951]
[1731951192246,18.47681951,240.44,240.35,23.776884]
[1731951192547,12.44801951,240.42,240.35,23.776884]
[1731951192753,12.44801951,240.4,240.32,23.776884]
[1731951193422,16.60781951,240.4,240.32,23.776884]
[1731951194752,12.44801951,240.38,240.32,23.776884]
[1731951194927,12.44801951,240.36,240.29,12.44801951]
[1731951195634,12.44801951,240.36,240.26,0.25098]
[1731951195635,12.44801951,240.36,240.27,12.44801951]
[1731951196251,12.44801951,240.36,240.29,12.44801951]
[1731951196553,12.44801951,240.36,240.3,23.776884]
[1731951196846,4.1605,240.35,240.3,23.776884]
[1731951197225,28.03741951,240.34,240.27,12.44801951]
[1731951197422,28.03741951,240.34,240.25,12.44801951]
[1731951197625,12.44801951,240.32,240.25,12.44801951]
[1731951198042,30.0,240.3,240.25,12.44801951]
[1731951198240,30.0,240.3,240.23,12.44801951]
[1731951198447,4.1616,240.29,240.23,12.44801951]
[1731951199044,30.0,240.28,240.23,12.44801951]
[1731951199556,34.1618,240.28,240.23,12.44801951]
[1731951200630,34.1618,240.28,240.21,12.44801951]
[1731951200833,34.1618,240.28,240.22,23.776884]
[1731951202030,30.0,240.28,240.23,12.57350951]
[1731951202241,30.0,240.28,240.24,23.776884]
[1731951202635,30.0,240.28,240.26,23.776884]
[1731951203666,30.0,240.28,240.26,27.938884]
[1731951204635,30.0,240.28,240.25,0.25098]
[1731951204830,30.0,240.28,240.24,23.776884]
[1731951205034,16.60961951,240.3,240.22,4.1627]
[1731951205234,16.60961951,240.3,240.23,12.44801951]
[1731951205532,12.44801951,240.32,240.24,0.12549]
[1731951205738,16.60921951,240.32,240.25,12.44801951]
[1731951206142,30.0,240.27,240.25,12.44801951]
[1731951206342,30.0,240.27,240.26,23.776884]
[1731951208859,30.0,240.27,240.24,23.902374]
[1731951209153,30.0,240.27,240.21,12.44801951]
[1731951209372,30.0,240.27,240.22,23.902374]
[1731951209946,30.0,240.27,240.23,12.44801951]
[1731951210253,30.0,240.27,240.24,23.776884]
[1731951212466,30.0,240.27,240.24,27.939284]
[1731951213350,4.1613,240.31,240.26,23.776884]
[1731951214064,4.1613,240.31,240.24,23.776884]
[1731951214283,4.1613,240.31,240.24,27.939384]
[1731951214961,4.1612,240.32,240.26,23.776884]
[1731951215341,16.60921951,240.32,240.25,23.776884]
[1731951215969,16.60921951,240.32,240.25,27.939084]
[1731951216352,4.1612,240.32,240.25,35.92082408]
[1731951216857,4.1612,240.32,240.22,0.12549]
[1731951216858,7.98174008,240.31,240.23,4.1625]
[1731951217064,7.98174008,240.27,240.17,24.1637]
[1731951217246,7.98174008,240.27,240.17,32.14544008]
[1731951217442,7.98174008,240.27,240.19,7.98174008]
[1731951217972,7.98174008,240.29,240.19,7.98174008]
[1731951218450,7.98174008,240.29,240.2,23.776884]
[1731951218649,4.1618,240.28,240.2,23.776884]
[1731951219266,4.1618,240.28,240.2,27.939984]
[1731951219850,4.1618,240.28,240.21,7.98174008]
[1731951220576,4.1618,240.28,240.21,12.14464008]
[1731951221667,7.98174008,240.31,240.21,12.14464008]
[1731951222052,7.98174008,240.29,240.2,23.776884]
[1731951222371,7.98174008,240.25,240.17,7.98174008]
[1731951223769,7.98174008,240.25,240.18,23.776884]
[1731951224063,4.1625,240.24,240.18,23.776884]
[1731951224872,7.98174008,240.23,240.17,0.12549]
[1731951225078,7.98174008,240.23,240.16,27.940684]
[1731951225374,7.98174008,240.23,240.15,10.4097]
[1731951225666,4.1625,240.24,240.1,15.5833]
[1731951225667,7.98174008,240.21,240.11,7.98174008]
[1731951226257,4.1625,240.24,240.13,7.98174008]
[1731951226453,7.98174008,240.22,240.13,7.98174008]
[1731951227358,4.163,240.21,240.13,7.98174008]
[1731951229261,7.98174008,240.15,240.07,9.35628229]
[1731951229577,7.98174008,240.17,240.07,9.35628229]
[1731951229751,6.3286,240.15,240.07,9.35628229]
[1731951230075,6.3286,240.15,240.07,17.33802237]
[1731951230278,6.3286,240.15,240.07,5.19098229]
[1731951230279,14.31034008,240.15,240.07,5.19098229]
[1731951230451,14.31034008,240.15,240.06,10.414]
[1731951230780,7.98174008,240.1,240.01,7.98174008]
[1731951230980,6.3286,240.15,240.06,7.98174008]
[1731951231156,4.1642,240.14,240.04,4.1658]
[1731951231361,7.98174008,240.13,240.05,7.98174008]
[1731951231673,4.1642,240.14,240.08,7.98174008]
[1731951232370,16.2466,240.16,240.12,7.98174008]
[1731951232576,16.2466,240.16,240.06,23.776884]
[1731951232776,7.98174008,240.15,240.06,31.75862408]
[1731951233077,6.072,240.21,240.14,7.98174008]
[1731951233280,6.072,240.21,240.16,7.98174008]
[1731951233468,18.21684008,240.21,240.12,7.98174008]
[1731951233672,7.98174008,240.19,240.11,23.776884]
[1731951233869,7.98174008,240.17,240.08,7.98174008]
[1731951234069,7.98174008,240.17,240.1,7.98174008]
[1731951234368,4.1638,240.16,240.08,7.98174008]
[1731951235072,12.14544008,240.17,240.09,23.776884]
[1731951236659,7.98174008,240.15,240.07,2.34068672]
[1731951236978,12.14544008,240.17,240.08,32.00960408]
[1731951237180,7.98174008,240.15,240.07,10.4136]
[1731951238475,4.1642,240.14,240.07,10.4136]
[1731951239079,4.1631,240.2,240.08,31.75862408]
[1731951239377,7.98174008,240.17,240.08,31.75862408]
[1731951240368,4.1638,240.16,240.08,31.75862408]
[1731951240569,4.1638,240.16,240.08,23.776884]
[1731951240882,4.1638,240.16,240.09,7.98174008]
[1731951242481,4.1636,240.18,240.11,7.98174008]
[1731951242691,12.14534008,240.18,240.09,22.55944008]
[1731951243076,4.1636,240.18,240.09,22.55944008]
[1731951243399,12.14534008,240.18,240.09,22.55944008]
[1731951243679,7.98174008,240.18,240.11,7.98174008]
[1731951244484,7.98174008,240.18,240.1,0.12549]
[1731951244870,12.14534008,240.18,240.1,4.29029]
[1731951245780,12.14534008,240.18,240.1,14.70259]
[1731951248975,6.072,240.21,240.14,0.25098]
[1731951250082,7.98174008,240.18,240.11,0.25098]
[1731951250484,7.98174008,240.18,240.12,4.1645]
[1731951251286,12.14524008,240.18,240.1,10.4123]
[1731951251476,12.14524008,240.18,240.1,14.5771]
[1731951251903,12.14504008,240.2,240.11,8.23272008]
[1731951252196,6.072,240.21,240.14,0.12549]
[1731951252382,6.072,240.21,240.15,4.164]
[1731951252693,15.8574,240.22,240.15,14.5741]
[1731951252911,12.14434008,240.24,240.16,0.12549]
[1731951253599,7.98174008,240.24,240.17,7.98174008]
[1731951253788,7.98174008,240.24,240.17,13.12296126]
[1731951254305,7.98174008,240.22,240.17,5.14122118]
[1731951254877,7.98174008,240.22,240.16,4.41478]
[1731951255796,7.98174008,240.22,240.16,14.82448]
[1731951257906,7.98174008,240.24,240.16,22.80622008]
[1731951258097,4.1621,240.26,240.16,22.80622008]
[1731951258098,12.14384008,240.26,240.16,27.94744126]
[1731951258417,27.80324008,240.27,240.2,7.98174008]
[1731951258906,7.98174008,240.29,240.21,0.25098]
[1731951259205,6.5874,240.32,240.22,8.0754147]
[1731951259415,6.5874,240.32,240.24,7.98174008]
[1731951259416,4.1611,240.32,240.24,7.98174008]
[1731951259596,4.1611,240.32,240.25,0.25098]
[1731951259788,4.1611,240.32,240.26,4.1621]
[1731951260297,15.126,240.33,240.26,4.1621]
[1731951260501,4.1608,240.34,240.26,4.1621]
[1731951260502,4.1602,240.37,240.27,5.88331229]
[1731951260699,7.98174008,240.35,240.28,7.98174008]
[1731951260891,7.98174008,240.35,240.28,13.61407237]
[1731951261202,7.98174008,240.35,240.29,0.25098]
[1731951261605,7.98174008,240.37,240.29,0.25098]
[1731951261992,7.98174008,240.37,240.3,12.14314008]
[1731951262313,7.98174008,240.36,240.3,4.1614]
[1731951263415,7.98174008,240.31,240.22,26.2159]
[1731951263616,7.98174008,240.28,240.22,26.2159]
[1731951263911,7.98174008,240.28,240.22,30.3786]
[1731951264117,7.98174008,240.3,240.22,38.36034008]
[1731951264291,4.1602,240.37,240.23,8.0754147]
[1731951264493,7.98174008,240.32,240.23,8.0754147]
[1731951264911,7.98174008,240.32,240.24,14.5687]
[1731951265116,7.98174008,240.32,240.25,0.25098]
[1731951265494,16.5303,240.39,240.27,7.98174008]
[1731951265701,7.98174008,240.35,240.29,0.25098]
[1731951266199,6.7166,240.44,240.24,14.5687]
[1731951266200,4.1592,240.43,240.3,8.0754147]
[1731951266415,7.98174008,240.37,240.31,0.25098]
[1731951266919,7.98174008,240.39,240.33,0.25098]
[1731951267108,7.98174008,240.37,240.32,10.4027]
[1731951267516,7.98174008,240.38,240.32,10.4027]
[1731951267901,7.98174008,240.39,240.32,10.4027]
[1731951268320,7.98174008,240.39,240.32,14.5638]
[1731951269017,12.14164008,240.39,240.32,14.5638]
[1731951270218,4.1592,240.43,240.33,0.09367462]
[1731951270398,12.14064008,240.45,240.38,7.98174008]
[1731951271419,4.1589,240.45,240.39,7.98174008]
[1731951271910,4.1581,240.49,240.43,7.98174008]
[1731951272304,4.1581,240.49,240.42,7.98174008]
[1731951272495,12.13984008,240.49,240.42,0.25098]
[1731951272695,12.13964008,240.51,240.43,7.98174008]
[1731951272995,4.1576,240.53,240.45,0.25098]
[1731951273195,15.7414,240.57,240.45,0.25098]
[1731951273196,15.7414,240.57,240.51,7.98174008]
[1731951273420,7.98174008,240.58,240.51,7.98174008]
[1731951273802,12.13834008,240.58,240.51,7.98174008]
[1731951274025,4.1563,240.6,240.53,7.98174008]
[1731951274207,12.13804008,240.6,240.53,7.98174008]
[1731951274400,4.1563,240.6,240.53,13.75877311]
[1731951274612,4.156,240.62,240.55,7.98174008]
[1731951274924,4.155,240.67,240.56,5.77703303]
[1731951275098,7.98174008,240.64,240.57,0.25098]
[1731951275295,7.98174008,240.66,240.59,0.25098]
[1731951275499,12.13704008,240.66,240.59,0.25098]
[1731951275715,7.98174008,240.66,240.59,8.23272008]
[1731951275918,7.98174008,240.66,240.59,12.38902008]
[1731951276314,12.43730981,240.67,240.6,12.43730981]
[1731951277611,16.59240981,240.67,240.6,12.43730981]
[1731951278607,12.43730981,240.61,240.51,14.5522]
[1731951278810,12.43730981,240.58,240.51,14.5522]
[1731951279920,4.1552,240.66,240.57,0.12549]
[1731951280128,4.1542,240.72,240.61,12.43730981]
[1731951280426,30.0,240.62,240.61,12.43730981]
[1731951282114,30.0,240.62,240.59,12.43730981]
[1731951282729,4.1553,240.66,240.59,12.43730981]
[1731951282935,12.43730981,240.67,240.59,16.59360981]
[1731951283418,16.59240981,240.67,240.59,12.43730981]
[1731951284211,16.59240981,240.67,240.59,16.59360981]
[1731951284616,12.43730981,240.67,240.6,0.25098]
[1731951285618,12.43730981,240.67,240.6,4.40708]
[1731951287013,12.43730981,240.67,240.61,12.43730981]
[1731951287210,30.0,240.62,240.61,12.43730981]
[1731951288529,30.0,240.62,240.6,4.40708]
[1731951290112,30.0,240.62,240.6,4.28159]
[1731951290627,30.0,240.62,240.61,12.43730981]
[1731951291013,30.0,240.62,240.61,12.68828981]
[1731951291214,30.0,240.62,240.61,12.78196443]
[1731951291611,30.0,240.62,240.61,18.55899746]
[1731951292307,12.43730981,240.75,240.62,0.34465462]
[1731951292536,30.0,240.63,240.62,14.89035462]
[1731951292920,16.59140981,240.73,240.62,14.89035462]
[1731951293119,12.43730981,240.75,240.62,14.89035462]
[1731951293325,12.43730981,240.75,240.66,0.21916462]
[1731951293519,12.43730981,240.75,240.66,6.12168765]
[1731951293520,30.0,240.67,240.66,6.12168765]
[1731951293836,30.0,240.67,240.66,18.55899746]
[1731951294022,12.43730981,240.75,240.67,0.12549]
[1731951294225,4.1538,240.74,240.67,0.25098]
[1731951294441,30.0,240.68,240.64,12.43730981]
[1731951294744,30.0,240.68,240.65,0.25098]
[1731951296641,30.0,240.68,240.65,4.40628]
[1731951297120,34.1549,240.68,240.62,10.3898]
[1731951297823,34.1549,240.68,240.62,14.5457]
[1731951299429,30.0,240.68,240.62,14.5457]
[1731951299735,30.0,240.68,240.63,12.43730981]
[1731951300435,34.1549,240.68,240.62,14.5457]
[1731951301039,30.0,240.68,240.63,12.43730981]
[1731951301247,30.0,240.68,240.67,12.43730981]
[1731951303229,30.0,240.68,240.67,12.78196443]
[1731951303719,30.0,240.68,240.66,0.25098]
[1731951304030,30.0,240.68,240.67,12.43730981]
[1731951304427,30.0,240.68,240.65,12.43730981]
[1731951304949,30.0,240.68,240.63,12.43730981]
[1731951305123,30.0,240.68,240.65,12.43730981]
[1731951305544,30.0,240.68,240.65,16.59260981]
[1731951305726,30.0,240.68,240.65,12.43730981]
[1731951306241,46.59220981,240.68,240.59,12.43730981]
[1731951306547,12.43730981,240.66,240.59,12.43730981]
[1731951307324,12.43730981,240.66,240.57,22.82920981]
[1731951307541,12.43730981,240.66,240.57,26.98590981]
[1731951307733,12.43730981,240.64,240.55,12.43730981]
[1731951307945,12.43730981,240.62,240.53,16.59470981]
[1731951308329,12.43730981,240.64,240.55,12.43730981]
[1731951309221,4.1557,240.63,240.55,12.43730981]
[1731951311154,12.43730981,240.62,240.55,12.43730981]
[1731951311355,12.43730981,240.59,240.43,15.4746]
[1731951311527,4.1561,240.61,240.43,15.4746]
[1731951311528,12.43730981,240.55,240.46,12.43730981]
[1731951311730,12.43730981,240.57,240.48,12.43730981]
[1731951311934,22.1422,240.58,240.52,12.43730981]
[1731951312656,4.1561,240.61,240.54,12.43730981]
[1731951312946,4.1561,240.61,240.56,12.43730981]
[1731951313545,4.1561,240.61,240.54,12.43730981]
[1731951313745,4.1561,240.61,240.51,10.3945]
[1731951313746,10.7157,240.64,240.56,12.43730981]
[1731951314063,4.1547,240.69,240.62,12.43730981]
[1731951314550,16.59200981,240.69,240.6,12.43730981]
[1731951315140,16.59200981,240.69,240.62,12.43730981]
[1731951315944,4.1547,240.69,240.62,12.43730981]
[1731951316144,6.3238,240.7,240.64,12.43730981]
[1731951316454,12.43730981,240.73,240.64,12.43730981]
[1731951316632,4.1541,240.73,240.66,12.43730981]
[1731951316830,16.59140981,240.73,240.64,12.43730981]
[1731951317035,12.43730981,240.71,240.64,12.43730981]
[1731951317354,16.59170981,240.71,240.64,12.43730981]
[1731951319221,16.59170981,240.71,240.62,4.1558]
[1731951319222,16.59170981,240.71,240.62,16.59310981]
[1731951319428,16.59170981,240.71,240.6,10.3906]
[1731951319429,12.43730981,240.67,240.58,16.59380981]
[1731951319644,12.43730981,240.65,240.56,4.1568]
[1731951319834,12.43730981,240.65,240.56,12.43730981]
[1731951320326,12.43730981,240.63,240.54,12.43730981]
[1731951320638,4.1559,240.62,240.54,12.43730981]
[1731951322046,12.43730981,240.61,240.52,12.43730981]
[1731951322255,12.43730981,240.59,240.52,12.43730981]
[1731951322553,12.43730981,240.59,240.5,22.83200981]
[1731951323630,4.1566,240.58,240.5,22.83200981]
[1731951324131,12.43730981,240.55,240.46,12.43730981]
[1731951324329,12.43730981,240.55,240.48,12.43730981]
[1731951324734,12.43730981,240.53,240.44,12.43730981]
[1731951324936,12.43730981,240.49,240.4,22.83660981]
[1731951325558,12.43730981,240.51,240.42,12.43730981]
[1731951325734,4.158,240.5,240.42,12.43730981]
[1731951326343,12.43730981,240.49,240.42,12.43730981]
[1731951326945,4.1583,240.48,240.42,12.43730981]
[1731951327330,4.1583,240.48,240.4,22.83660981]
[1731951327544,4.1583,240.48,240.4,12.43730981]
[1731951328133,4.1581,240.5,240.44,12.43730981]
[1731951328756,15.4796,240.59,240.48,12.43730981]
[1731951328943,15.4796,240.59,240.43,15.7107]
[1731951328944,19.6361,240.59,240.53,12.43730981]
[1731951329136,19.6361,240.59,240.51,12.43730981]
[1731951329345,32.07340981,240.59,240.51,12.43730981]
[1731951329560,32.07340981,240.59,240.49,12.43730981]
[1731951330354,12.43730981,240.57,240.49,12.43730981]
[1731951331044,32.07340981,240.59,240.49,12.43730981]
[1731951331448,32.07340981,240.59,240.49,16.59540981]
[1731951331638,32.07340981,240.59,240.53,12.43730981]
[1731951331639,4.1565,240.59,240.53,12.43730981]
[1731951332741,4.1565,240.59,240.5,0.25098]
[1731951332742,15.4035,240.54,240.36,16.4777]
[1731951333048,12.43730981,240.49,240.41,12.43730981]
[1731951333766,12.43730981,240.51,240.41,12.43730981]
[1731951333963,12.43730981,240.51,240.43,12.43730981]
[1731951334141,15.4035,240.54,240.47,12.43730981]
[1731951334543,12.43730981,240.53,240.45,12.43730981]
[1731951334745,4.1576,240.52,240.45,12.43730981]
[1731951335040,19.5609,240.54,240.47,12.43730981]
[1731951335246,12.43730981,240.57,240.37,15.65447462]
[1731951335247,4.157,240.56,240.49,12.43730981]
[1731951335745,4.157,240.56,240.47,12.43730981]
[1731951335947,4.157,240.56,240.45,12.43730981]
[1731951335948,12.43730981,240.53,240.45,12.43730981]
[1731951336271,12.43730981,240.53,240.44,0.25098]
[1731951336435,12.26730981,240.53,240.44,0.25098]
[1731951336770,12.43730981,240.51,240.44,0.25098]
[1731951337253,12.43730981,240.45,240.3,4.1614]
[1731951337454,12.43730981,240.45,240.19,24.93]
[1731951337455,12.43730981,240.32,240.26,10.405]
[1731951337768,12.43730981,240.3,240.21,12.43730981]
[1731951338060,12.43730981,240.3,240.17,15.1161]
[1731951338061,12.43730981,240.26,240.17,12.43730981]
[1731951338547,12.43730981,240.24,240.15,12.43730981]
[1731951338962,4.1623,240.25,240.17,12.43730981]
[1731951339259,16.59950981,240.26,240.17,12.43730981]
[1731951339448,16.59950981,240.26,240.16,0.25098]
[1731951339652,12.43730981,240.24,240.15,27.01140981]
[1731951339855,12.43730981,240.24,240.15,22.84740981]
[1731951340464,19.97204318,240.24,240.17,19.97204318]
[1731951340956,4.1622,240.26,240.19,19.97204318]
[1731951341360,24.13424318,240.26,240.17,20.22302318]
[1731951341895,19.97204318,240.26,240.19,19.97204318]
[1731951342159,6.0525,240.33,240.21,19.97204318]
[1731951342160,19.97204318,240.29,240.21,19.97204318]
[1731951342747,26.02454318,240.33,240.18,0.09367462]
[1731951342951,26.02454318,240.33,240.26,19.97204318]
[1731951343666,26.02454318,240.33,240.24,19.97204318]
[1731951344370,19.97204318,240.25,240.07,4.1654]
[1731951344569,19.97204318,240.2,240.12,19.97204318]
[1731951344741,19.97204318,240.22,240.12,19.97204318]
[1731951345062,19.97204318,240.22,240.14,19.97204318]
[1731951345261,16.658837,240.25,240.18,19.97204318]
[1731951345443,19.97204318,240.26,240.18,19.97204318]
[1731951345845,19.97204318,240.28,240.2,19.97204318]
[1731951346057,19.97204318,240.26,240.18,19.97204318]
[1731951346344,24.13424318,240.26,240.18,19.97204318]
[1731951347151,24.13424318,240.26,240.18,24.13544318]
[1731951347350,19.97204318,240.28,240.2,19.97204318]
[1731951347556,4.1617,240.29,240.22,19.97204318]
[1731951347748,19.97204318,240.28,240.2,19.97204318]
[1731951347949,19.97204318,240.28,240.21,19.97204318]
[1731951348358,19.97204318,240.3,240.23,19.97204318]
[1731951348764,4.1612,240.31,240.19,4.1632]
[1731951348765,4.1612,240.31,240.25,19.97204318]
[1731951348945,19.97204318,240.32,240.25,19.97204318]
[1731951349149,24.13324318,240.32,240.25,19.97204318]
[1731951350156,6.0525,240.33,240.26,23.776884]
[1731951350367,4.1608,240.34,240.27,19.97204318]
[1731951350577,19.97204318,240.28,240.2,4.163]
[1731951350753,19.97204318,240.24,240.16,19.97204318]
[1731951351072,26.18814318,240.32,240.22,19.97204318]
[1731951351375,26.18814318,240.32,240.24,19.97204318]
[1731951351757,19.97204318,240.28,240.22,19.97204318]
[1731951352056,4.1619,240.27,240.2,19.97204318]
[1731951352254,19.97204318,240.26,240.18,19.97204318]
[1731951352974,14.5668,240.27,240.14,4.164]
[1731951352975,4.1619,240.27,240.2,19.97204318]
[1731951353488,4.1619,240.27,240.22,19.97204318]
[1731951353774,4.1619,240.27,240.2,19.97204318]
[1731951354962,4.1619,240.27,240.22,19.97204318]
[1731951356076,4.1616,240.29,240.22,19.97204318]
[1731951356374,4.1616,240.29,240.24,19.97204318]
[1731951356921,6.2161,240.32,240.28,19.97204318]
[1731951357179,10.3772,240.32,240.26,19.97204318]
[1731951357561,19.97204318,240.3,240.23,19.97204318]
[1731951358063,4.1616,240.29,240.23,19.97204318]
[1731951359284,26.18814318,240.32,240.23,19.97204318]
[1731951359455,4.1612,240.31,240.23,19.97204318]
[1731951360260,4.1612,240.31,240.25,12.47402658]
[1731951361064,4.1612,240.31,240.27,12.47402658]
[1731951362981,4.1612,240.31,240.26,12.47402658]
[1731951363276,4.161,240.33,240.28,12.47402658]
[1731951363479,12.47402658,240.31,240.24,12.47402658]
[1731951363779,12.47402658,240.32,240.24,12.47402658]
[1731951364080,12.47402658,240.29,240.22,22.88112658]
[1731951364406,12.47402658,240.29,240.21,4.163]
[1731951364407,4.1618,240.28,240.21,12.47402658]
[1731951364765,16.63582658,240.28,240.21,12.47402658]
[1731951364967,4.1618,240.28,240.22,12.47402658]
[1731951365176,28.13962658,240.35,240.26,12.47402658]
[1731951365375,4.1607,240.34,240.26,12.47402658]
[1731951366663,30.0,240.27,240.24,16.63632658]